fUSD/lending_fUSD_20260703
["ID","MTS","AMOUNT","RATE_DAILY","PERIOD"]
[426941973,1783035051000,-303.40388377,0.00033414,2]
[426941977,1783035051000,-300.0,0.00033414,2]
[426941975,1783035051000,-300.0,0.00033414,2]
[426941978,1783035051000,-300.0,0.00033414,2]
[426941971,1783035051000,-730.2023839,0.00033414,2]
[426941970,1783035051000,-536.83065571,0.00033414,2]
[426941968,1783035051000,-607.91868214,0.00033414,2]
[426941965,1783035051000,-452.88695909,0.00033414,2]
[426941969,1783035051000,-300.0,0.00033414,2]
[426941972,1783035051000,-300.0,0.00033414,2]
[426942047,1783035052000,-584.85636615,0.00033414,2]
[426942051,1783035052000,-300.0,0.00033414,2]
[426942053,1783035052000,-446.20103305,0.00033414,2]
[426942050,1783035052000,-300.0,0.00033414,2]
[426942044,1783035052000,-300.0,0.00033414,2]
[426942046,1783035052000,-300.0,0.00033414,2]
[426942045,1783035052000,-514.02377053,0.00033414,2]
[426942043,1783035052000,-353.30698567,0.00033414,2]
[426942034,1783035052000,-954.40977015,0.00033414,2]
[426942049,1783035052000,-300.0,0.00033414,2]
[426942048,1783035052000,-454.31833835,0.00033414,2]
[426942042,1783035052000,-569.07827579,0.00033414,2]
[426942064,1783035052000,-300.0,0.00033414,2]
[426942054,1783035052000,-300.0,0.00033414,2]
[426942056,1783035052000,-1101.26754386,0.00033414,2]
[426942055,1783035052000,-300.0,0.00033414,2]
[426942057,1783035052000,-300.0,0.00033414,2]
[426942058,1783035052000,-300.0,0.00033414,2]
[426942060,1783035052000,-300.0,0.00033414,2]
[426942061,1783035052000,-300.0,0.00033414,2]
[426942059,1783035052000,-300.0,0.00033414,2]
[426942062,1783035052000,-495.35167751,0.00033414,2]
[426942063,1783035052000,-300.0,0.00033414,2]
[426942065,1783035052000,-607.91868214,0.00033414,2]
[426942040,1783035052000,-597.3150425,0.00033414,2]
[426942066,1783035052000,-536.83065571,0.00033414,2]
[426942052,1783035052000,-300.0,0.00033414,2]
[426942038,1783035052000,-564.57560998,0.00033414,2]
[426942021,1783035052000,-730.2023839,0.00033414,2]
[426942037,1783035052000,-300.0,0.00033414,2]
[426942067,1783035052000,-730.2023839,0.00033414,2]
[426942015,1783035052000,-495.35167751,0.00033414,2]
[426942011,1783035052000,-300.0,0.00033414,2]
[426942012,1783035052000,-513.85429265,0.00033414,2]
[426942014,1783035052000,-300.0,0.00033414,2]
[426942013,1783035052000,-300.0,0.00033414,2]
[426942016,1783035052000,-300.0,0.00033414,2]
[426942018,1783035052000,-607.91868214,0.00033414,2]
[426942017,1783035052000,-300.0,0.00033414,2]
[426942019,1783035052000,-472.35540434,0.00033414,2]
[426942020,1783035052000,-536.83065571,0.00033414,2]
[426942024,1783035052000,-302.19910179,0.00033414,2]
[426942041,1783035052000,-311.25771399,0.00033414,2]
[426942023,1783035052000,-303.40388377,0.00033414,2]
[426942025,1783035052000,-300.0,0.00033414,2]
[426942027,1783035052000,-533.08251466,0.00033414,2]
[426942026,1783035052000,-300.0,0.00033414,2]
[426942028,1783035052000,-300.0,0.00033414,2]
[426942029,1783035052000,-300.0,0.00033414,2]
[426942031,1783035052000,-529.6723478,0.00033414,2]
[426942032,1783035052000,-300.0,0.00033414,2]
[426942030,1783035052000,-345.80256672,0.00033414,2]
[426942033,1783035052000,-300.0,0.00033414,2]
[426942039,1783035052000,-300.0,0.00033414,2]
[426942036,1783035052000,-420.48784213,0.00033414,2]
[426942035,1783035052000,-1807.51296116,0.00033414,2]
[426942022,1783035052000,-300.0,0.00033414,2]
[426942068,1783035052000,-303.40388377,0.00033414,2]
[426942119,1783035052000,-358.0,0.00033476,14]
[426942069,1783035052000,-302.19910179,0.00033414,2]
[426942101,1783035052000,-300.0,0.00033414,2]
[426942102,1783035052000,-500.0,0.00033417,60]
[426942103,1783035052000,-649.2014577,0.00033417,60]
[426942106,1783035052000,-243.0690201,0.00033417,60]
[426942108,1783035052000,-249.0017556,0.00033417,60]
[426942104,1783035052000,-748.4983794,0.00033417,60]
[426942107,1783035052000,-358.4210542,0.00033417,60]
[426942105,1783035052000,-292.9445201,0.00033417,60]
[426942111,1783035052000,-367.05313802,0.00033421,14]
[426942110,1783035052000,-3433.0,0.00033421,10]
[426942109,1783035052000,-250.0,0.0003342,7]
[426942112,1783035052000,-9000.0,0.00033422,5]
[426942099,1783035052000,-300.0,0.00033414,2]
[426942117,1783035052000,-173.40636751,0.00033459,30]
[426942120,1783035052000,-358.0,0.00033476,14]
[426942116,1783035052000,-173.40636751,0.00033459,30]
[426942118,1783035052000,-173.40636751,0.00033459,30]
[426942114,1783035052000,-169.81,0.00033423,120]
[426942121,1783035052000,-1339.63,0.00033476,2]
[426942124,1783035052000,-169.3172591,0.00033489,2]
[426942122,1783035052000,-893.08,0.00033476,2]
[426942125,1783035052000,-800.0,0.000335,5]
[426942123,1783035052000,-250.69,0.00033486,30]
[426942126,1783035052000,-1239.47165787,0.000335,2]
[426942127,1783035052000,-800.0,0.000335,5]
[426942071,1783035052000,-300.0,0.00033414,2]
[426942115,1783035052000,-173.40636752,0.00033459,30]
[426942098,1783035052000,-1101.26754386,0.00033414,2]
[426942113,1783035052000,-1166.42,0.00033423,4]
[426942096,1783035052000,-300.0,0.00033414,2]
[426942100,1783035052000,-300.0,0.00033414,2]
[426942074,1783035052000,-345.80256672,0.00033414,2]
[426942072,1783035052000,-300.0,0.00033414,2]
[426942073,1783035052000,-300.0,0.00033414,2]
[426942077,1783035052000,-300.0,0.00033414,2]
[426942076,1783035052000,-300.0,0.00033414,2]
[426942075,1783035052000,-529.6723478,0.00033414,2]
[426942078,1783035052000,-954.40977015,0.00033414,2]
[426942084,1783035052000,-311.25771399,0.00033414,2]
[426942080,1783035052000,-300.0,0.00033414,2]
[426942083,1783035052000,-597.3150425,0.00033414,2]
[426942086,1783035052000,-562.71036719,0.00033414,2]
[426942085,1783035052000,-569.07827579,0.00033414,2]
[426942070,1783035052000,-300.0,0.00033414,2]
[426942097,1783035052000,-300.0,0.00033414,2]
[426942093,1783035052000,-300.0,0.00033414,2]
[426942095,1783035052000,-446.20103305,0.00033414,2]
[426942092,1783035052000,-300.0,0.00033414,2]
[426942094,1783035052000,-300.0,0.00033414,2]
[426942082,1783035052000,-300.0,0.00033414,2]
[426942090,1783035052000,-454.31833835,0.00033414,2]
[426942091,1783035052000,-300.0,0.00033414,2]
[426942087,1783035052000,-514.02377053,0.00033414,2]
[426942088,1783035052000,-300.0,0.00033414,2]
[426942081,1783035052000,-564.57560998,0.00033414,2]
[426942079,1783035052000,-1807.51296116,0.00033414,2]
[426942089,1783035052000,-584.85636615,0.00033414,2]
[426942168,1783035053000,-175.42,0.00033967,2]
[426942165,1783035053000,-5577.24429228,0.00033938,30]
[426942167,1783035053000,-150.0,0.00033967,2]
[426942166,1783035053000,-150.0,0.00033967,2]
[426942169,1783035053000,-150.0,0.00033967,2]
[426942158,1783035053000,-250.69,0.0003379,30]
[426942164,1783035053000,-13309.59647954,0.0003392,2]
[426942163,1783035053000,-150.0,0.00033903,120]
[426942161,1783035053000,-390.64,0.000339,30]
[426942162,1783035053000,-193.82,0.000339,7]
[426942173,1783035053000,-1000.0,0.00033969,2]
[426942160,1783035053000,-2947.5407219,0.00033811,2]
[426942170,1783035053000,-150.0,0.00033967,2]
[426942171,1783035053000,-150.0,0.00033967,2]
[426942178,1783035053000,-500.0,0.00033973,7]
[426942176,1783035053000,-2380.0,0.0003397,120]
[426942174,1783035053000,-500.0,0.00033969,7]
[426942175,1783035053000,-663.0,0.0003397,120]
[426942181,1783035053000,-500.0,0.00033973,7]
[426942177,1783035053000,-618.0,0.0003397,120]
[426942179,1783035053000,-500.0,0.00033973,7]
[426942182,1783035053000,-500.0,0.00033973,7]
[426942180,1783035053000,-500.0,0.00033973,7]
[426942183,1783035053000,-500.0,0.00033973,7]
[426942185,1783035053000,-500.0,0.00033973,7]
[426942184,1783035053000,-500.0,0.00033973,7]
[426942186,1783035053000,-500.0,0.00033973,7]
[426942172,1783035053000,-150.0,0.00033967,2]
[426942154,1783035053000,-150.0,0.00033771,120]
[426942135,1783035053000,-327.89,0.00033594,120]
[426942159,1783035053000,-207.4308787,0.00033811,2]
[426942191,1783035053000,-500.0,0.00033973,7]
[426942132,1783035053000,-150.0,0.00033516,5]
[426942137,1783035053000,-150.0,0.0003364,30]
[426942129,1783035053000,-800.0,0.000335,5]
[426942131,1783035053000,-483.0,0.00033516,7]
[426942133,1783035053000,-1524.0,0.00033516,7]
[426942130,1783035053000,-150.0,0.00033508,30]
[426942138,1783035053000,-428.37,0.00033644,3]
[426942128,1783035053000,-390.64,0.000335,30]
[426942134,1783035053000,-5502.0,0.00033549,2]
[426942136,1783035053000,-193.82,0.000336,7]
[426942139,1783035053000,-350.0,0.00033693,3]
[426942141,1783035053000,-1722.47016,0.000337,120]
[426942140,1783035053000,-196.88915172,0.00033695,2]
[426942142,1783035053000,-150.0,0.00033705,120]
[426942147,1783035053000,-1362.0,0.00033725,2]
[426942143,1783035053000,-150.0,0.00033705,120]
[426942144,1783035053000,-150.0,0.00033705,120]
[426942145,1783035053000,-150.0,0.00033705,120]
[426942146,1783035053000,-15612.8082208,0.00033711,2]
[426942148,1783035053000,-1278.0,0.00033725,2]
[426942150,1783035053000,-3652.0,0.00033725,2]
[426942149,1783035053000,-1231.0,0.00033725,2]
[426942153,1783035053000,-161.0,0.00033762,11]
[426942152,1783035053000,-608.91,0.00033731,120]
[426942155,1783035053000,-151.0,0.00033775,7]
[426942157,1783035053000,-152.0,0.00033775,7]
[426942156,1783035053000,-151.0,0.00033775,7]
[426942194,1783035053000,-617.98708688,0.00033973,7]
[426942151,1783035053000,-6089.0,0.00033725,2]
[426942190,1783035053000,-500.0,0.00033973,7]
[426942223,1783035053000,-151.0,0.00034,7]
[426942224,1783035053000,-151.0,0.00034,7]
[426942227,1783035053000,-176.032772,0.00034,7]
[426942249,1783035053000,-156.550377,0.00034,7]
[426942226,1783035053000,-176.032772,0.00034,7]
[426942225,1783035053000,-176.032772,0.00034,7]
[426942230,1783035053000,-151.0,0.00034,7]
[426942228,1783035053000,-176.032772,0.00034,7]
[426942229,1783035053000,-151.0,0.00034,7]
[426942232,1783035053000,-198.21795,0.00034,7]
[426942231,1783035053000,-151.0,0.00034,7]
[426942234,1783035053000,-198.21795,0.00034,7]
[426942233,1783035053000,-198.21795,0.00034,7]
[426942235,1783035053000,-198.21795,0.00034,7]
[426942237,1783035053000,-1742.90169,0.00034,5]
[426942236,1783035053000,-1482.42,0.00034,7]
[426942238,1783035053000,-1742.90169,0.00034,5]
[426942239,1783035053000,-1742.90169,0.00034,5]
[426942243,1783035053000,-251.358745,0.00034,7]
[426942240,1783035053000,-1742.90169,0.00034,5]
[426942241,1783035053000,-151.0,0.00034,7]
[426942242,1783035053000,-156.550377,0.00034,7]
[426942244,1783035053000,-156.550377,0.00034,7]
[426942245,1783035053000,-251.358745,0.00034,7]
[426942246,1783035053000,-156.550377,0.00034,7]
[426942248,1783035053000,-251.358745,0.00034,7]
[426942247,1783035053000,-251.358745,0.00034,7]
[426942221,1783035053000,-151.0,0.00034,7]
[426942222,1783035053000,-151.0,0.00034,7]
[426942189,1783035053000,-500.0,0.00033973,7]
[426942213,1783035053000,-266.177845,0.00034,7]
[426942193,1783035053000,-500.0,0.00033973,7]
[426942188,1783035053000,-500.0,0.00033973,7]
[426942187,1783035053000,-500.0,0.00033973,7]
[426942192,1783035053000,-500.0,0.00033973,7]
[426942197,1783035053000,-618.0,0.0003398,120]
[426942195,1783035053000,-663.0,0.0003398,120]
[426942198,1783035053000,-663.0,0.0003399,120]
[426942220,1783035053000,-333.61536,0.00034,7]
[426942199,1783035053000,-2380.0,0.0003399,120]
[426942202,1783035053000,-536.26009265,0.00034,2]
[426942204,1783035053000,-71245.94006153,0.00034,2]
[426942203,1783035053000,-800.0,0.00034,7]
[426942201,1783035053000,-536.0,0.00034,2]
[426942200,1783035053000,-618.0,0.0003399,120]
[426942196,1783035053000,-2380.0,0.0003398,120]
[426942206,1783035053000,-5073.25041755,0.00034,120]
[426942207,1783035053000,-800.0,0.00034,7]
[426942219,1783035053000,-333.61536,0.00034,7]
[426942216,1783035053000,-333.61536,0.00034,7]
[426942215,1783035053000,-151.0,0.00034,7]
[426942214,1783035053000,-151.0,0.00034,7]
[426942217,1783035053000,-151.0,0.00034,7]
[426942218,1783035053000,-333.61536,0.00034,7]
[426942209,1783035053000,-151.0,0.00034,7]
[426942211,1783035053000,-266.177845,0.00034,7]
[426942208,1783035053000,-3416.754669,0.00034,120]
[426942210,1783035053000,-266.177845,0.00034,7]
[426942205,1783035053000,-158.92821099,0.00034,14]
[426942212,1783035053000,-266.177845,0.00034,7]
[426942288,1783035054000,-151.0,0.00034,7]
[426942291,1783035054000,-190.2042748,0.00034005,2]
[426942292,1783035054000,-152.0,0.00034024,8]
[426942286,1783035054000,-151.0,0.00034,7]
[426942287,1783035054000,-151.0,0.00034,7]
[426942281,1783035054000,-316.821825,0.00034,7]
[426942290,1783035054000,-150.0,0.00034002,2]
[426942285,1783035054000,-151.0,0.00034,7]
[426942284,1783035054000,-316.821825,0.00034,7]
[426942283,1783035054000,-316.821825,0.00034,7]
[426942282,1783035054000,-316.821825,0.00034,7]
[426942289,1783035054000,-318.152491,0.00034,7]
[426942294,1783035054000,-150.0,0.0003406,120]
[426942308,1783035054000,-390.64,0.000343,30]
[426942295,1783035054000,-250.69,0.00034094,30]
[426942293,1783035054000,-150.0,0.00034034,120]
[426942298,1783035054000,-150.0,0.00034165,120]
[426942299,1783035054000,-2337.0,0.00034172,11]
[426942297,1783035054000,-150.0,0.00034149,120]
[426942300,1783035054000,-388.9235017,0.00034181,2]
[426942301,1783035054000,-250.0,0.00034182,30]
[426942305,1783035054000,-1196.68769754,0.00034231,2]
[426942303,1783035054000,-1482.42,0.000342,7]
[426942306,1783035054000,-150.0,0.00034297,120]
[426942304,1783035054000,-193.82,0.000342,7]
[426942302,1783035054000,-250.0,0.00034182,30]
[426942278,1783035054000,-6493.676491,0.00034,7]
[426942296,1783035054000,-200.0,0.000341,13]
[426942280,1783035054000,-287.618103,0.00034,7]
[426942264,1783035054000,-5523.515329,0.00034,7]
[426942277,1783035054000,-151.0,0.00034,7]
[426942307,1783035054000,-150.0,0.00034297,120]
[426942250,1783035054000,-851.483759,0.00034,7]
[426942251,1783035054000,-851.483759,0.00034,7]
[426942252,1783035054000,-851.483759,0.00034,7]
[426942253,1783035054000,-851.483759,0.00034,7]
[426942254,1783035054000,-258.913443,0.00034,7]
[426942255,1783035054000,-258.913443,0.00034,7]
[426942256,1783035054000,-258.913443,0.00034,7]
[426942259,1783035054000,-589.093131,0.00034,7]
[426942258,1783035054000,-589.093131,0.00034,7]
[426942257,1783035054000,-258.913443,0.00034,7]
[426942261,1783035054000,-236.201492,0.00034,7]
[426942260,1783035054000,-589.093131,0.00034,7]
[426942262,1783035054000,-589.093131,0.00034,7]
[426942263,1783035054000,-5523.515329,0.00034,7]
[426942266,1783035054000,-5523.515329,0.00034,7]
[426942265,1783035054000,-5523.515329,0.00034,7]
[426942267,1783035054000,-701.564091,0.00034,7]
[426942268,1783035054000,-701.564091,0.00034,7]
[426942270,1783035054000,-701.564091,0.00034,7]
[426942271,1783035054000,-6493.676491,0.00034,7]
[426942269,1783035054000,-701.564091,0.00034,7]
[426942272,1783035054000,-151.0,0.00034,7]
[426942274,1783035054000,-6493.676491,0.00034,7]
[426942276,1783035054000,-6493.676491,0.00034,7]
[426942273,1783035054000,-151.0,0.00034,7]
[426942275,1783035054000,-151.0,0.00034,7]
[426942279,1783035054000,-151.0,0.00034,7]
[426942309,1783035054000,-3049.38298938,0.00034314,5]
[426942315,1783035054000,-500.0,0.00034417,7]
[426942311,1783035054000,-150.71519319,0.00034399,30]
[426942343,1783035054000,-333.61536,0.00034571,7]
[426942345,1783035054000,-333.61536,0.00034571,7]
[426942344,1783035054000,-159.191156,0.00034571,7]
[426942347,1783035054000,-333.61536,0.00034571,7]
[426942350,1783035054000,-151.0,0.00034571,7]
[426942352,1783035054000,-176.032772,0.00034571,7]
[426942351,1783035054000,-209.054191,0.00034571,7]
[426942349,1783035054000,-151.0,0.00034571,7]
[426942348,1783035054000,-151.0,0.00034571,7]
[426942353,1783035054000,-176.032772,0.00034571,7]
[426942355,1783035054000,-176.032772,0.00034571,7]
[426942354,1783035054000,-176.032772,0.00034571,7]
[426942357,1783035054000,-151.0,0.00034571,7]
[426942346,1783035054000,-333.61536,0.00034571,7]
[426942356,1783035054000,-151.0,0.00034571,7]
[426942359,1783035054000,-198.21795,0.00034571,7]
[426942360,1783035054000,-198.21795,0.00034571,7]
[426942361,1783035054000,-198.21795,0.00034571,7]
[426942367,1783035054000,-212.378489,0.00034571,7]
[426942364,1783035054000,-1742.90169,0.00034571,5]
[426942362,1783035054000,-198.21795,0.00034571,7]
[426942363,1783035054000,-1742.90169,0.00034571,5]
[426942368,1783035054000,-156.550377,0.00034571,7]
[426942365,1783035054000,-1742.90169,0.00034571,5]
[426942310,1783035054000,-4570.48846354,0.00034314,5]
[426942370,1783035054000,-156.550377,0.00034571,7]
[426942371,1783035054000,-251.358745,0.00034571,7]
[426942369,1783035054000,-251.358745,0.00034571,7]
[426942358,1783035054000,-151.0,0.00034571,7]
[426942342,1783035054000,-151.0,0.00034571,7]
[426942366,1783035054000,-1742.90169,0.00034571,5]
[426942335,1783035054000,-150.0,0.0003456,120]
[426942313,1783035054000,-151.0,0.00034415,14]
[426942314,1783035054000,-1000.0,0.00034417,2]
[426942317,1783035054000,-151.0,0.00034418,7]
[426942312,1783035054000,-1482.42,0.000344,7]
[426942316,1783035054000,-151.0,0.00034418,7]
[426942321,1783035054000,-150.0,0.00034493,2]
[426942320,1783035054000,-196.88915172,0.00034459,2]
[426942318,1783035054000,-350.0,0.00034422,2]
[426942339,1783035054000,-266.177845,0.00034571,7]
[426942322,1783035054000,-150.0,0.00034493,2]
[426942325,1783035054000,-150.0,0.00034493,2]
[426942324,1783035054000,-150.0,0.00034493,2]
[426942323,1783035054000,-150.0,0.00034493,2]
[426942319,1783035054000,-150.0,0.00034428,120]
[426942327,1783035054000,-1000.0,0.00034499,2]
[426942340,1783035054000,-266.177845,0.00034571,7]
[426942326,1783035054000,-252.364,0.00034493,2]
[426942337,1783035054000,-266.177845,0.00034571,7]
[426942341,1783035054000,-158.01747358,0.00034571,7]
[426942338,1783035054000,-266.177845,0.00034571,7]
[426942334,1783035054000,-305.6,0.00034509,41]
[426942336,1783035054000,-151.0,0.00034571,7]
[426942333,1783035054000,-2000.0,0.000345,7]
[426942330,1783035054000,-29397.76688004,0.000345,10]
[426942331,1783035054000,-624.01918282,0.000345,7]
[426942329,1783035054000,-800.0,0.000345,7]
[426942328,1783035054000,-500.0,0.00034499,7]
[426942332,1783035054000,-193.82,0.000345,7]
[426942410,1783035055000,-151.0,0.00034571,7]
[426942409,1783035055000,-151.0,0.00034571,7]
[426942407,1783035055000,-316.821825,0.00034571,7]
[426942408,1783035055000,-316.821834,0.00034571,7]
[426942401,1783035055000,-6493.676491,0.00034571,7]
[426942403,1783035055000,-6493.676495,0.00034571,7]
[426942405,1783035055000,-316.821825,0.00034571,7]
[426942406,1783035055000,-316.821825,0.00034571,7]
[426942400,1783035055000,-151.0,0.00034571,7]
[426942404,1783035055000,-151.0,0.00034571,7]
[426942411,1783035055000,-151.0,0.00034571,7]
[426942425,1783035055000,-318.152491,0.000346,7]
[426942413,1783035055000,-318.152491,0.00034571,7]
[426942414,1783035055000,-6896.2026673,0.00034571,2]
[426942416,1783035055000,-5000.0,0.00034571,2]
[426942415,1783035055000,-5000.0,0.00034571,2]
[426942417,1783035055000,-5000.0,0.00034571,2]
[426942419,1783035055000,-150.0,0.00034592,120]
[426942420,1783035055000,-150.0,0.00034592,120]
[426942421,1783035055000,-1482.42,0.000346,7]
[426942418,1783035055000,-5000.0,0.00034571,2]
[426942423,1783035055000,-151.0,0.000346,7]
[426942422,1783035055000,-151.0,0.000346,7]
[426942402,1783035055000,-252.37583,0.00034571,7]
[426942412,1783035055000,-151.0,0.00034571,7]
[426942399,1783035055000,-6493.676491,0.00034571,7]
[426942387,1783035055000,-589.093123,0.00034571,7]
[426942393,1783035055000,-701.564091,0.00034571,7]
[426942424,1783035055000,-151.0,0.000346,7]
[426942378,1783035055000,-851.483759,0.00034571,7]
[426942373,1783035055000,-251.358745,0.00034571,7]
[426942372,1783035055000,-156.550377,0.00034571,7]
[426942375,1783035055000,-156.550377,0.00034571,7]
[426942377,1783035055000,-851.483759,0.00034571,7]
[426942374,1783035055000,-251.358745,0.00034571,7]
[426942376,1783035055000,-851.483759,0.00034571,7]
[426942379,1783035055000,-851.483755,0.00034571,7]
[426942381,1783035055000,-258.913443,0.00034571,7]
[426942380,1783035055000,-258.913443,0.00034571,7]
[426942382,1783035055000,-258.913443,0.00034571,7]
[426942383,1783035055000,-258.913436,0.00034571,7]
[426942385,1783035055000,-589.093131,0.00034571,7]
[426942384,1783035055000,-589.093131,0.00034571,7]
[426942386,1783035055000,-589.093131,0.00034571,7]
[426942388,1783035055000,-5523.515329,0.00034571,7]
[426942389,1783035055000,-5523.515329,0.00034571,7]
[426942390,1783035055000,-5523.515329,0.00034571,7]
[426942392,1783035055000,-701.564091,0.00034571,7]
[426942391,1783035055000,-5523.51531913,0.00034571,7]
[426942394,1783035055000,-701.564091,0.00034571,7]
[426942398,1783035055000,-151.0,0.00034571,7]
[426942395,1783035055000,-701.564091,0.00034571,7]
[426942397,1783035055000,-151.0,0.00034571,7]
[426942396,1783035055000,-6493.676491,0.00034571,7]
[426942428,1783035055000,-390.64,0.000347,30]
[426942461,1783035055000,-725.0,0.00034857,7]
[426942430,1783035055000,-257.04754162,0.00034757,2]
[426942458,1783035055000,-156.550377,0.000348,7]
[426942460,1783035055000,-441.43113121,0.00034855,2]
[426942459,1783035055000,-150.0,0.00034822,120]
[426942466,1783035055000,-154.98925467,0.00034907,2]
[426942469,1783035055000,-663.0,0.0003497,120]
[426942462,1783035055000,-150.0,0.00034857,5]
[426942463,1783035055000,-2287.0,0.00034857,7]
[426942467,1783035055000,-150.0,0.00034954,120]
[426942468,1783035055000,-500.0,0.0003497,2]
[426942464,1783035055000,-663.08981562,0.0003488,120]
[426942465,1783035055000,-150.0,0.00034888,120]
[426942457,1783035055000,-251.358745,0.000348,7]
[426942471,1783035055000,-618.0,0.0003497,120]
[426942473,1783035055000,-663.0,0.0003498,120]
[426942474,1783035055000,-2380.0,0.0003498,120]
[426942472,1783035055000,-151.0,0.00034977,14]
[426942476,1783035055000,-663.0,0.0003498,120]
[426942477,1783035055000,-2380.0,0.0003498,120]
[426942479,1783035055000,-663.0,0.0003499,120]
[426942478,1783035055000,-618.0,0.0003498,120]
[426942480,1783035055000,-2380.0,0.0003499,120]
[426942482,1783035055000,-663.0,0.0003499,120]
[426942481,1783035055000,-618.0,0.0003499,120]
[426942431,1783035055000,-5150.0,0.00034758,10]
[426942470,1783035055000,-2380.0,0.0003497,120]
[426942456,1783035055000,-251.358745,0.000348,7]
[426942475,1783035055000,-618.0,0.0003498,120]
[426942454,1783035055000,-251.358745,0.000348,7]
[426942426,1783035055000,-447.76,0.00034633,3]
[426942455,1783035055000,-156.550377,0.000348,7]
[426942427,1783035055000,-150.0,0.00034691,120]
[426942432,1783035055000,-150.0,0.0003477,120]
[426942429,1783035055000,-242.33,0.00034703,30]
[426942434,1783035055000,-1500.0,0.00034795,2]
[426942436,1783035055000,-176.032772,0.000348,7]
[426942433,1783035055000,-8819.38890027,0.0003478,7]
[426942439,1783035055000,-151.0,0.000348,7]
[426942438,1783035055000,-176.03278,0.000348,7]
[426942437,1783035055000,-176.032772,0.000348,7]
[426942441,1783035055000,-151.0,0.000348,7]
[426942435,1783035055000,-176.032772,0.000348,7]
[426942440,1783035055000,-151.0,0.000348,7]
[426942452,1783035055000,-251.358745,0.000348,7]
[426942442,1783035055000,-198.21795,0.000348,7]
[426942451,1783035055000,-156.550377,0.000348,7]
[426942453,1783035055000,-156.550377,0.000348,7]
[426942450,1783035055000,-1742.90169,0.000348,5]
[426942447,1783035055000,-1742.90169,0.000348,5]
[426942449,1783035055000,-1742.90169,0.000348,5]
[426942446,1783035055000,-1482.42,0.000348,7]
[426942445,1783035055000,-198.217958,0.000348,7]
[426942443,1783035055000,-198.21795,0.000348,7]
[426942444,1783035055000,-198.21795,0.000348,7]
[426942448,1783035055000,-1742.90169,0.000348,5]
[426942505,1783035056000,-1500.0,0.00035,2]
[426942503,1783035056000,-536.0,0.00035,30]
[426942507,1783035056000,-1500.0,0.00035,2]
[426942508,1783035056000,-1500.0,0.00035,2]
[426942506,1783035056000,-1500.0,0.00035,2]
[426942509,1783035056000,-800.0,0.00035,7]
[426942510,1783035056000,-33667.45268257,0.00035,7]
[426942511,1783035056000,-33667.45268257,0.00035,7]
[426942516,1783035056000,-20000.0,0.00035,10]
[426942513,1783035056000,-19365.73313389,0.00035,2]
[426942515,1783035056000,-4250.92914416,0.00035,7]
[426942517,1783035056000,-31086.03242333,0.00035,2]
[426942514,1783035056000,-541.79505674,0.00035,7]
[426942519,1783035056000,-44466.17,0.00035,15]
[426942498,1783035056000,-1500.0,0.00035,2]
[426942520,1783035056000,-419.27000163,0.00035,120]
[426942512,1783035056000,-1500.0,0.00035,2]
[426942504,1783035056000,-1500.0,0.00035,2]